[Event "IV Elllobregat Open Chess Tmnt"]
[Site "Sant Boi de Llobregat, Spain"]
[Date "2023.12.03"]
[Round "4.50"]
[White "Tyurin, Artem"]
[Black "Trost, Edvin"]
[Result "1/2-1/2"]
[TimeControl "90min/40moves + 15min/end + 30sec from move 1"]
[WhiteFideId "44130112"]
[BlackFideId "1729519"]
[WhiteElo "2302"]
[BlackElo "2440"]

1. c4 {[%emt 00:00:23]} c6 {[%clk 01:30:13]} {[%emt 00:00:27]} 2. d4 {[%clk
01:31:19]} {[%emt 00:00:08]} d5 {[%clk 01:30:20]} {[%emt 00:00:23]} 3. Nf3
{[%clk 01:31:45]} {[%emt 00:00:04]} Nf6 {[%clk 01:30:45]} {[%emt 00:00:05]} 4.
e3 {[%clk 01:32:13]} {[%emt 00:00:03]} Bf5 {[%clk 01:31:08]} {[%emt 00:00:07]}
5. Nc3 {[%clk 01:32:36]} {[%emt 00:00:06]} e6 {[%clk 01:31:27]} {[%emt
00:00:09]} 6. Nh4 {[%clk 01:32:55]} {[%emt 00:00:13]} Bg6 {[%clk 01:31:42]}
{[%emt 00:00:15]} 7. Nxg6 {[%clk 01:28:44]} {[%emt 00:04:41]} hxg6 {[%clk
01:32:00]} {[%emt 00:00:12]} 8. Bd2 {[%clk 01:29:00]} {[%emt 00:00:14]} Nbd7
{[%clk 01:31:51]} {[%emt 00:00:40]} 9. Qc2 {[%clk 01:27:48]} {[%emt 00:01:42]}
Rc8 {[%clk 01:31:27]} {[%emt 00:00:54]} 10. O-O-O {[%clk 01:19:50]} {[%emt
00:08:27]} dxc4 {[%clk 01:21:16]} {[%emt 00:10:42]} 11. Bxc4 {[%clk 01:20:16]}
{[%emt 00:00:04]} b5 {[%clk 01:21:41]} {[%emt 00:00:05]} 12. Be2 {[%clk
01:20:40]} {[%emt 00:00:05]} a6 {[%clk 01:08:32]} {[%emt 00:13:39]} 13. e4
{[%clk 01:19:53]} {[%emt 00:01:17]} c5 {[%clk 01:08:41]} {[%emt 00:00:21]} 14.
d5 {[%clk 01:20:20]} {[%emt 00:00:03]} e5 {[%clk 01:09:06]} {[%emt 00:00:04]}
15. d6 {[%clk 01:19:42]} {[%emt 00:01:09]} Bxd6 {[%clk 01:04:22]} {[%emt
00:05:14]} 16. g4 {[%clk 00:59:45]} {[%emt 00:20:27]} Nb6 {[%clk 00:56:49]}
{[%emt 00:08:03]} 17. g5 {[%clk 00:49:31]} {[%emt 00:10:44]} Nfd7 {[%clk
00:55:12]} {[%emt 00:02:08]} 18. Be3 {[%clk 00:43:15]} {[%emt 00:06:45]} Rc6
{[%clk 00:55:18]} {[%emt 00:00:24]} 19. h4 {[%clk 00:38:50]} {[%emt 00:04:55]}
c4 {[%clk 00:44:35]} {[%emt 00:11:14]} 20. h5 {[%clk 00:34:54]} {[%emt
00:04:25]} gxh5 {[%clk 00:44:41]} {[%emt 00:00:24]} 21. Bxh5 {[%clk 00:30:50]}
{[%emt 00:04:34]} Bc5 {[%clk 00:24:46]} {[%emt 00:20:26]} 22. Qe2 {[%clk
00:26:15]} {[%emt 00:05:05]} Bxe3+ {[%clk 00:17:05]} {[%emt 00:08:10]} 23. Qxe3
{[%clk 00:25:33]} {[%emt 00:01:14]} g6 {[%clk 00:05:47]} {[%emt 00:11:48]} 24.
Bg4 {[%clk 00:24:42]} {[%emt 00:01:21]} Rxh1 {[%clk 00:05:15]} {[%emt
00:01:02]} 25. Rxh1 {[%clk 00:25:11]} Nf8 {[%clk 00:01:23]} {[%emt 00:04:22]}
26. Nd5 {[%clk 00:15:07]} {[%emt 00:10:34]} Nxd5 {[%clk 00:01:48]} {[%emt
00:00:05]} 27. exd5 {[%clk 00:15:28]} {[%emt 00:00:10]} Rd6 {[%clk 00:02:18]}
28. Qxe5+ {[%clk 00:03:02]} {[%emt 00:12:56]} Qe7 {[%clk 00:02:47]} {[%emt
00:00:01]} 29. Re1 {[%clk 00:02:14]} {[%emt 00:01:18]} Qxe5 {[%clk 00:03:15]}
{[%emt 00:00:01]} 30. Rxe5+ {[%clk 00:02:43]} Kd8 {[%clk 00:03:40]} {[%emt
00:00:05]} 31. f4 {[%clk 00:02:54]} {[%emt 00:00:20]} Nd7 {[%clk 00:00:40]}
{[%emt 00:03:30]} 32. Bxd7 {[%clk 00:03:18]} {[%emt 00:00:05]} Rxd7 {[%clk
00:00:42]} {[%emt 00:00:29]} 33. Kc2 {[%clk 00:01:56]} {[%emt 00:01:52]} b4
{[%clk 00:00:32]} {[%emt 00:00:40]} 34. a3 {[%clk 00:01:52]} {[%emt 00:00:35]}
bxa3 {[%clk 00:00:32]} {[%emt 00:00:30]} 35. bxa3 {[%clk 00:02:21]} {[%emt
00:00:01]} Rb7 {[%clk 00:00:58]} {[%emt 00:00:04]} 1/2-1/2

[Event "IV Elllobregat Open Chess Tmnt"]
[Site "Sant Boi de Llobregat, Spain"]
[Date "2023.12.03"]
[Round "4.51"]
[White "Proudian, Armen"]
[Black "Kairbekova, Amina"]
[Result "1-0"]
[TimeControl "90min/40moves + 15min/end + 30sec from move 1"]
[WhiteFideId "2130734"]
[BlackFideId "13712799"]
[WhiteElo "2428"]
[BlackElo "2228"]

1. e4 {[%clk 01:30:50]} {[%emt 00:00:09]} c5 {[%clk 01:30:53]} {[%emt
00:00:08]} 2. Nf3 {[%clk 01:30:56]} {[%emt 00:00:24]} e6 {[%clk 01:31:17]}
{[%emt 00:00:06]} 3. d4 {[%clk 01:31:01]} {[%emt 00:00:25]} cxd4 {[%clk
01:31:42]} {[%emt 00:00:06]} 4. Nxd4 {[%clk 01:31:17]} {[%emt 00:00:12]} Nf6
{[%clk 01:32:09]} {[%emt 00:00:04]} 5. Nc3 {[%clk 01:31:10]} {[%emt 00:00:36]}
Nc6 {[%clk 01:32:33]} {[%emt 00:00:08]} 6. Nxc6 {[%clk 01:30:48]} {[%emt
00:00:52]} bxc6 {[%clk 01:32:56]} {[%emt 00:00:06]} 7. e5 {[%clk 01:30:54]}
{[%emt 00:00:24]} Nd5 {[%clk 01:33:18]} {[%emt 00:00:08]} 8. Ne4 {[%clk
01:30:53]} {[%emt 00:00:31]} Bb7 {[%clk 01:33:28]} {[%emt 00:00:21]} 9. c4
{[%clk 01:29:37]} {[%emt 00:01:46]} Nb4 {[%clk 01:33:32]} {[%emt 00:00:26]} 10.
c5 {[%clk 01:29:01]} {[%emt 00:01:06]} Qb8 {[%clk 01:33:29]} {[%emt 00:00:33]}
11. f4 {[%clk 01:28:00]} {[%emt 00:01:30]} Ba6 {[%clk 01:33:19]} {[%emt
00:00:41]} 12. Be2 {[%clk 01:26:56]} {[%emt 00:01:34]} Bxe2 {[%clk 01:30:47]}
{[%emt 00:03:02]} 13. Qxe2 {[%clk 01:27:08]} {[%emt 00:00:17]} Be7 {[%clk
01:31:04]} {[%emt 00:00:13]} 14. O-O {[%clk 01:18:49]} {[%emt 00:08:49]} Qb5
{[%clk 01:23:04]} {[%emt 00:08:31]} 15. Qxb5 {[%clk 01:16:25]} {[%emt
00:02:53]} cxb5 {[%clk 01:22:18]} {[%emt 00:01:16]} 16. Bd2 {[%clk 01:16:14]}
{[%emt 00:00:40]} Nc6 {[%clk 01:19:37]} {[%emt 00:03:12]} 17. b4 {[%clk
01:09:15]} {[%emt 00:07:29]} O-O {[%clk 01:10:10]} {[%emt 00:09:57]} 18. Rfd1
{[%clk 00:43:13]} {[%emt 00:26:31]} f6 {[%clk 00:52:30]} {[%emt 00:18:10]} 19.
exf6 {[%clk 00:26:37]} {[%emt 00:17:06]} gxf6 {[%clk 00:50:35]} {[%emt
00:02:26]} 20. Bc3 {[%clk 00:25:02]} {[%emt 00:02:05]} a5 {[%clk 00:49:33]}
{[%emt 00:01:31]} 21. Rxd7 {[%clk 00:19:13]} {[%emt 00:06:19]} axb4 {[%clk
00:49:57]} {[%emt 00:00:07]} 22. Bb2 {[%clk 00:18:51]} {[%emt 00:00:52]} Rf7
{[%clk 00:42:02]} {[%emt 00:08:25]} 23. Kf1 {[%clk 00:16:53]} {[%emt 00:02:28]}
f5 {[%clk 00:37:56]} {[%emt 00:04:36]} 24. Nd6 {[%clk 00:16:42]} {[%emt
00:00:41]} Nb8 {[%clk 00:29:22]} {[%emt 00:09:05]} 25. Rc7 {[%clk 00:14:10]}
{[%emt 00:03:01]} Na6 {[%clk 00:29:23]} {[%emt 00:00:29]} 26. Rc6 {[%clk
00:14:07]} {[%emt 00:00:32]} Rff8 {[%clk 00:28:22]} {[%emt 00:01:31]} 27. Be5
{[%clk 00:13:36]} {[%emt 00:01:01]} Rfd8 {[%clk 00:26:41]} {[%emt 00:02:13]} 28.
Rd1 {[%clk 00:13:34]} {[%emt 00:00:32]} Rd7 {[%clk 00:16:03]} {[%emt 00:11:08]}
29. Rd3 {[%clk 00:13:21]} {[%emt 00:00:42]} Kf8 {[%clk 00:11:25]} {[%emt
00:05:08]} 30. Rg3 {[%clk 00:10:49]} {[%emt 00:03:02]} Bd8 {[%clk 00:05:45]}
{[%emt 00:06:10]} 31. Nxb5 {[%clk 00:10:42]} {[%emt 00:00:36]} Bh4 {[%clk
00:01:14]} {[%emt 00:05:01]} 32. Bd6+ {[%clk 00:09:28]} {[%emt 00:01:44]} Kf7
{[%clk 00:01:28]} {[%emt 00:00:17]} 33. Rh3 {[%clk 00:09:30]} {[%emt 00:00:28]}
Nb8 {[%clk 00:01:12]} {[%emt 00:00:47]} 34. Rc8 {[%clk 00:08:52]} {[%emt
00:01:08]} 1-0

[Event "IV Elllobregat Open Chess Tmnt"]
[Site "Sant Boi de Llobregat, Spain"]
[Date "2023.12.03"]
[Round "4.52"]
[White "Selbes, Tamer Tarik"]
[Black "Narciso Dublan, Marc"]
[Result "1-0"]
[TimeControl "90min/40moves + 15min/end + 30sec from move 1"]
[WhiteFideId "6302513"]
[BlackFideId "2201500"]
[WhiteElo "2238"]
[BlackElo "2413"]

1. e4 {[%clk 01:30:34]} {[%emt 00:00:25]} Nc6 {[%clk 01:30:51]} {[%emt
00:00:09]} 2. Nf3 {[%clk 01:30:27]} {[%emt 00:00:37]} d6 {[%clk 01:30:58]}
{[%emt 00:00:23]} 3. d4 {[%clk 01:30:31]} {[%emt 00:00:27]} Nf6 {[%clk
01:31:20]} {[%emt 00:00:07]} 4. Nc3 {[%clk 01:30:39]} {[%emt 00:00:22]} g6
{[%clk 01:31:43]} {[%emt 00:00:08]} 5. d5 {[%clk 01:28:56]} {[%emt 00:02:13]}
Nb8 {[%clk 01:32:06]} {[%emt 00:00:06]} 6. Be2 {[%clk 01:29:16]} {[%emt
00:00:10]} Bg7 {[%clk 01:32:30]} {[%emt 00:00:06]} 7. O-O {[%clk 01:28:33]}
{[%emt 00:01:12]} O-O {[%clk 01:32:56]} {[%emt 00:00:05]} 8. h3 {[%clk
01:28:41]} {[%emt 00:00:22]} e5 {[%clk 01:32:10]} {[%emt 00:01:16]} 9. dxe6
{[%clk 01:27:26]} {[%emt 00:01:45]} Bxe6 {[%clk 01:32:30]} {[%emt 00:00:09]} 10.
Nd4 {[%clk 01:16:11]} {[%emt 00:11:45]} Bd7 {[%clk 01:32:47]} {[%emt 00:00:12]}
11. Bg5 {[%clk 01:15:01]} {[%emt 00:01:40]} Nc6 {[%clk 01:30:43]} {[%emt
00:02:35]} 12. Nb3 {[%clk 01:10:48]} {[%emt 00:04:43]} h6 {[%clk 01:30:03]}
{[%emt 00:01:09]} 13. Be3 {[%clk 01:11:06]} {[%emt 00:00:13]} Re8 {[%clk
01:29:42]} {[%emt 00:00:50]} 14. Nd2 {[%clk 01:04:36]} {[%emt 00:07:00]} Be6
{[%clk 01:23:23]} {[%emt 00:06:50]} 15. Qc1 {[%clk 00:59:34]} {[%emt 00:05:32]}
d5 {[%clk 01:22:53]} {[%emt 00:00:59]} 16. exd5 {[%clk 00:59:54]} {[%emt
00:00:10]} Nxd5 {[%clk 01:22:57]} {[%emt 00:00:25]} 17. Nxd5 {[%clk 01:00:14]}
{[%emt 00:00:10]} Bxd5 {[%clk 01:18:43]} {[%emt 00:04:44]} 18. Nf3 {[%clk
01:00:30]} {[%emt 00:00:14]} Qf6 {[%clk 01:15:55]} {[%emt 00:03:18]} 19. Rd1
{[%clk 01:00:35]} {[%emt 00:00:26]} Rad8 {[%clk 01:15:53]} {[%emt 00:00:32]} 20.
c4 {[%clk 01:00:28]} {[%emt 00:00:37]} Be4 {[%clk 01:05:13]} {[%emt 00:11:10]}
21. Rxd8 {[%clk 00:59:55]} {[%emt 00:01:04]} Rxd8 {[%clk 01:05:19]} {[%emt
00:00:24]} 22. Bxh6 {[%clk 00:59:50]} {[%emt 00:00:33]} Qxb2 {[%clk 00:59:57]}
{[%emt 00:05:53]} 23. Qxb2 {[%clk 00:58:17]} {[%emt 00:02:03]} Bxb2 {[%clk
01:00:19]} {[%emt 00:00:08]} 24. Re1 {[%clk 00:58:29]} {[%emt 00:00:18]} Nb4
{[%clk 00:42:20]} {[%emt 00:18:30]} 25. Bd1 {[%clk 00:55:31]} {[%emt 00:03:28]}
Nxa2 {[%clk 00:21:05]} {[%emt 00:21:45]} 26. Rxe4 {[%clk 00:54:03]} {[%emt
00:01:58]} Rxd1+ {[%clk 00:20:22]} {[%emt 00:01:14]} 27. Kh2 {[%clk 00:54:30]}
{[%emt 00:00:02]} Bc1 {[%clk 00:16:19]} {[%emt 00:04:34]} 28. Re8+ {[%clk
00:54:05]} {[%emt 00:00:55]} Kh7 {[%clk 00:16:46]} {[%emt 00:00:03]} 29. Bf8
{[%clk 00:50:46]} {[%emt 00:03:49]} a5 {[%clk 00:14:44]} {[%emt 00:02:32]} 30.
Bc5 {[%clk 00:50:11]} {[%emt 00:01:04]} g5 {[%clk 00:08:27]} {[%emt 00:06:47]}
31. Bd4 {[%clk 00:46:42]} {[%emt 00:03:59]} f5 {[%clk 00:05:07]} {[%emt
00:03:50]} 32. h4 {[%clk 00:38:10]} {[%emt 00:09:02]} gxh4 {[%clk 00:03:37]}
{[%emt 00:01:59]} 33. Be5 {[%clk 00:38:04]} {[%emt 00:00:36]} Kg6 {[%clk
00:02:52]} {[%emt 00:01:15]} 34. Re7 {[%clk 00:38:19]} {[%emt 00:00:15]} f4
{[%clk 00:01:28]} {[%emt 00:01:55]} 35. Nxh4+ {[%clk 00:38:24]} {[%emt
00:00:24]} Kg5 {[%clk 00:01:44]} {[%emt 00:00:14]} 36. g3 {[%clk 00:36:55]}
{[%emt 00:01:59]} fxg3+ {[%clk 00:01:25]} {[%emt 00:00:50]} 37. fxg3 {[%clk
00:37:20]} {[%emt 00:00:05]} Rd2+ {[%clk 00:00:39]} {[%emt 00:01:16]} 38. Kh3
{[%clk 00:37:41]} {[%emt 00:00:09]} Rd3 {[%clk 00:01:01]} {[%emt 00:00:08]} 39.
Rg7+ {[%clk 00:35:11]} {[%emt 00:03:00]} Kh5 {[%clk 00:01:29]} {[%emt
00:00:02]} 40. Bf6 {[%clk 00:40:54]} {[%emt 00:09:47]} Nc3 {[%clk 00:15:37]}
{[%emt 00:01:22]} 41. Rh7+ {[%clk 00:40:55]} {[%emt 00:00:29]} Bh6 {[%clk
00:16:03]} {[%emt 00:00:05]} 42. Bg7 {[%clk 00:40:38]} {[%emt 00:00:47]} Ne4
{[%clk 00:12:27]} {[%emt 00:04:05]} 43. Rxh6+ {[%clk 00:41:02]} {[%emt
00:00:07]} Kg5 {[%clk 00:12:54]} {[%emt 00:00:02]} 44. Rg6+ {[%clk 00:41:17]}
{[%emt 00:00:16]} Kh5 {[%clk 00:13:21]} {[%emt 00:00:03]} 45. Be5 {[%clk
00:41:07]} {[%emt 00:00:39]} Ng5+ {[%clk 00:12:23]} {[%emt 00:01:29]} 46. Kg2
{[%clk 00:41:17]} {[%emt 00:00:19]} Rd2+ {[%clk 00:09:03]} {[%emt 00:03:51]} 47.
Kf1 {[%clk 00:41:37]} {[%emt 00:00:09]} Ne4 {[%clk 00:09:19]} {[%emt 00:00:15]}
48. Rg8 {[%clk 00:40:16]} {[%emt 00:01:51]} a4 {[%clk 00:00:42]} {[%emt
00:09:07]} 49. Ng2 {[%clk 00:38:07]} {[%emt 00:02:38]} Rd7 {[%clk 00:00:34]}
{[%emt 00:00:39]} 50. g4+ {[%clk 00:36:17]} {[%emt 00:02:20]} Kh6 {[%clk
00:01:02]} {[%emt 00:00:02]} 51. Nh4 {[%clk 00:36:04]} {[%emt 00:00:42]} Nd2+
{[%clk 00:00:49]} {[%emt 00:00:44]} 52. Ke2 {[%clk 00:36:23]} {[%emt 00:00:11]}
Nxc4 {[%clk 00:01:10]} {[%emt 00:00:08]} 53. Rh8+ {[%clk 00:34:56]} {[%emt
00:01:56]} Kg5 {[%clk 00:01:21]} {[%emt 00:00:20]} 54. Nf3+ {[%clk 00:33:56]}
{[%emt 00:01:30]} Kg6 {[%clk 00:01:11]} {[%emt 00:00:40]} 55. Bc3 {[%clk
00:33:40]} {[%emt 00:00:45]} b5 {[%clk 00:01:02]} {[%emt 00:00:39]} 56. Rh5
{[%clk 00:32:52]} {[%emt 00:01:18]} Re7+ {[%clk 00:00:57]} {[%emt 00:00:35]} 57.
Kf2 {[%clk 00:33:08]} {[%emt 00:00:14]} Re3 {[%clk 00:01:01]} {[%emt 00:00:26]}
58. Nh4+ {[%clk 00:32:41]} {[%emt 00:00:56]} Kf7 {[%clk 00:01:29]} {[%emt
00:00:03]} 59. Bh8 {[%clk 00:27:25]} {[%emt 00:05:46]} Re8 {[%clk 00:00:55]}
{[%emt 00:01:04]} 60. g5 {[%clk 00:25:39]} {[%emt 00:02:16]} a3 {[%clk
00:00:41]} {[%emt 00:00:45]} 61. g6+ {[%clk 00:25:39]} {[%emt 00:00:29]} Ke6
{[%clk 00:01:02]} {[%emt 00:00:08]} 62. Bc3 {[%clk 00:25:20]} {[%emt 00:00:49]}
c6 {[%clk 00:00:32]} {[%emt 00:01:02]} 63. g7 {[%clk 00:25:22]} {[%emt
00:00:27]} Rg8 {[%clk 00:00:36]} {[%emt 00:00:26]} 64. Rh8 {[%clk 00:25:37]}
{[%emt 00:00:15]} Rxg7 {[%clk 00:00:37]} {[%emt 00:00:30]} 65. Bxg7 {[%clk
00:26:02]} {[%emt 00:00:04]} b4 {[%clk 00:01:02]} {[%emt 00:00:05]} 66. Nf3
{[%clk 00:25:28]} {[%emt 00:01:04]} c5 {[%clk 00:01:25]} {[%emt 00:00:07]} 67.
Ke2 {[%clk 00:23:02]} {[%emt 00:02:57]} b3 {[%clk 00:01:20]} {[%emt 00:00:34]}
68. Nd2 {[%clk 00:21:40]} {[%emt 00:01:51]} b2 {[%clk 00:01:29]} {[%emt
00:00:21]} 69. Bxb2 {[%clk 00:21:11]} {[%emt 00:01:00]} axb2 {[%clk 00:01:52]}
{[%emt 00:00:07]} 70. Rb8 {[%clk 00:21:31]} {[%emt 00:00:10]} 1-0

[Event "IV Elllobregat Open Chess Tmnt"]
[Site "Sant Boi de Llobregat, Spain"]
[Date "2023.12.03"]
[Round "4.53"]
[White "Roca Planas, Edgar"]
[Black "Abdurakhmonov, Mukhammadali"]
[Result "1/2-1/2"]
[TimeControl "90min/40moves + 15min/end + 30sec from move 1"]
[WhiteFideId "24561290"]
[BlackFideId "14207346"]
[WhiteElo "2218"]
[BlackElo "2409"]

1. e4 {[%clk 01:30:56]} {[%emt 00:00:03]} c5 {[%clk 01:30:42]} {[%emt
00:00:18]} 2. Nf3 {[%clk 01:31:13]} {[%emt 00:00:12]} Nc6 {[%clk 01:31:08]}
{[%emt 00:00:05]} 3. Bb5 {[%clk 01:30:48]} {[%emt 00:00:55]} e6 {[%clk
01:31:33]} {[%emt 00:00:06]} 4. O-O {[%clk 01:31:03]} {[%emt 00:00:14]} Nge7
{[%clk 01:31:56]} {[%emt 00:00:08]} 5. Re1 {[%clk 01:31:27]} {[%emt 00:00:06]}
a6 {[%clk 01:32:14]} {[%emt 00:00:13]} 6. Bf1 {[%clk 01:31:50]} {[%emt
00:00:07]} d5 {[%clk 01:31:33]} {[%emt 00:01:11]} 7. d3 {[%clk 01:31:29]}
{[%emt 00:00:52]} g6 {[%clk 01:29:19]} {[%emt 00:02:44]} 8. exd5 {[%clk
01:28:35]} {[%emt 00:03:23]} Nxd5 {[%clk 01:25:13]} {[%emt 00:04:36]} 9. d4
{[%clk 01:28:49]} {[%emt 00:00:17]} cxd4 {[%clk 01:24:15]} {[%emt 00:01:28]} 10.
Nxd4 {[%clk 01:29:13]} {[%emt 00:00:06]} Nce7 {[%clk 01:14:23]} {[%emt
00:10:21]} 11. c4 {[%clk 01:15:44]} {[%emt 00:13:58]} Nf6 {[%clk 01:14:17]}
{[%emt 00:00:35]} 12. Bf4 {[%clk 01:11:56]} {[%emt 00:04:19]} Bg7 {[%clk
01:14:34]} {[%emt 00:00:12]} 13. Be5 {[%clk 01:11:38]} {[%emt 00:00:49]} O-O
{[%clk 01:14:41]} {[%emt 00:00:23]} 14. Nc3 {[%clk 01:11:12]} {[%emt 00:00:56]}
Bd7 {[%clk 01:13:49]} {[%emt 00:01:22]} 15. Qb3 {[%clk 01:03:59]} {[%emt
00:07:41]} Nc6 {[%clk 01:13:17]} {[%emt 00:01:02]} 16. Nxc6 {[%clk 01:04:24]}
{[%emt 00:00:06]} Bxc6 {[%clk 01:13:44]} {[%emt 00:00:04]} 17. Rad1 {[%clk
01:04:51]} {[%emt 00:00:03]} Qa5 {[%clk 01:11:38]} {[%emt 00:02:35]} 18. a3
{[%clk 00:54:28]} {[%emt 00:10:52]} Rfd8 {[%clk 01:08:15]} {[%emt 00:03:54]} 19.
Bd4 {[%clk 00:53:29]} {[%emt 00:01:30]} Nd7 {[%clk 01:01:56]} {[%emt 00:06:48]}
20. Bxg7 {[%clk 00:51:07]} {[%emt 00:02:51]} Kxg7 {[%clk 01:02:00]} {[%emt
00:00:26]} 21. Qa2 {[%clk 00:51:16]} {[%emt 00:00:21]} Qg5 {[%clk 00:59:17]}
{[%emt 00:03:13]} 22. Ne4 {[%clk 00:43:20]} {[%emt 00:08:26]} Bxe4 {[%clk
00:57:32]} {[%emt 00:02:15]} 23. Rxe4 {[%clk 00:43:44]} {[%emt 00:00:05]} Nc5
{[%clk 00:56:34]} {[%emt 00:01:28]} 24. Red4 {[%clk 00:40:32]} {[%emt
00:03:42]} Rxd4 {[%clk 00:56:59]} {[%emt 00:00:05]} 25. Rxd4 {[%clk 00:40:58]}
{[%emt 00:00:04]} a5 {[%clk 00:57:03]} {[%emt 00:00:27]} 26. b3 {[%clk
00:37:42]} {[%emt 00:03:46]} Qc1 {[%clk 00:55:06]} {[%emt 00:02:27]} 27. Rd2
{[%clk 00:36:31]} {[%emt 00:01:41]} a4 {[%clk 00:42:54]} {[%emt 00:12:42]} 28.
b4 {[%clk 00:36:36]} {[%emt 00:00:26]} Nb3 {[%clk 00:43:19]} {[%emt 00:00:04]}
29. Rd7 {[%clk 00:33:18]} {[%emt 00:03:48]} Rc8 {[%clk 00:38:40]} {[%emt
00:05:09]} 30. Qe2 {[%clk 00:30:53]} {[%emt 00:02:55]} Qxa3 {[%clk 00:36:47]}
{[%emt 00:02:23]} 31. Qxe6 {[%clk 00:29:02]} {[%emt 00:02:21]} Rf8 {[%clk
00:37:03]} {[%emt 00:00:14]} 32. Qe5+ {[%clk 00:28:29]} {[%emt 00:01:03]} Kg8
{[%clk 00:37:30]} {[%emt 00:00:04]} 33. Rxb7 {[%clk 00:28:46]} {[%emt
00:00:13]} Qc1 {[%clk 00:35:31]} {[%emt 00:02:28]} 34. Rb8 {[%clk 00:28:15]}
{[%emt 00:01:01]} Rxb8 {[%clk 00:34:37]} {[%emt 00:01:25]} 35. Qxb8+ {[%clk
00:28:39]} {[%emt 00:00:06]} Kg7 {[%clk 00:35:03]} {[%emt 00:00:04]} 36. Qe5+
{[%clk 00:28:35]} {[%emt 00:00:34]} Kh6 {[%clk 00:35:29]} {[%emt 00:00:05]} 37.
b5 {[%clk 00:25:04]} {[%emt 00:04:01]} a3 {[%clk 00:23:19]} {[%emt 00:12:40]}
38. b6 {[%clk 00:25:11]} {[%emt 00:00:23]} Nc5 {[%clk 00:15:53]} {[%emt
00:07:56]} 39. Qxc5 {[%clk 00:24:17]} {[%emt 00:01:23]} a2 {[%clk 00:16:19]}
{[%emt 00:00:05]} 40. Qf8+ {[%clk 00:39:06]} {[%emt 00:00:41]} Kh5 {[%clk
00:31:17]} {[%emt 00:00:32]} 41. Qc5+ {[%clk 00:38:05]} {[%emt 00:01:31]} f5
{[%clk 00:30:32]} {[%emt 00:01:16]} 42. g4+ {[%clk 00:38:24]} {[%emt 00:00:10]}
Kxg4 {[%clk 00:28:34]} {[%emt 00:02:27]} 43. Qd4+ {[%clk 00:36:28]} {[%emt
00:02:26]} Kh5 {[%clk 00:28:26]} {[%emt 00:00:38]} 44. b7 {[%clk 00:36:18]}
{[%emt 00:00:40]} Qg5+ {[%clk 00:28:24]} {[%emt 00:00:32]} 45. Kh1 {[%clk
00:35:32]} {[%emt 00:01:15]} Qc1 {[%clk 00:28:49]} {[%emt 00:00:06]} 46. Kg2
{[%emt 00:06:40]} 1/2-1/2

[Event "IV Elllobregat Open Chess Tmnt"]
[Site "Sant Boi de Llobregat, Spain"]
[Date "2023.12.03"]
[Round "4.54"]
[White "Fishchuk, Vladyslav"]
[Black "Iliaguev, Nisim"]
[Result "1-0"]
[TimeControl "90min/40moves + 15min/end + 30sec from move 1"]
[WhiteFideId "34122117"]
[BlackFideId "2817276"]
[WhiteElo "2198"]
[BlackElo "2409"]

1. d4 {[%clk 01:30:56]} {[%emt 00:00:02]} Nf6 {[%clk 01:30:54]} {[%emt
00:00:06]} 2. c4 {[%clk 01:31:22]} {[%emt 00:00:04]} e6 {[%clk 01:31:19]}
{[%emt 00:00:05]} 3. Nf3 {[%clk 01:31:47]} {[%emt 00:00:05]} Bb4+ {[%clk
01:31:43]} {[%emt 00:00:06]} 4. Nbd2 {[%clk 01:32:13]} {[%emt 00:00:04]} O-O
{[%clk 01:32:06]} {[%emt 00:00:07]} 5. a3 {[%clk 01:32:40]} {[%emt 00:00:03]}
Be7 {[%clk 01:32:31]} {[%emt 00:00:05]} 6. e4 {[%clk 01:33:03]} {[%emt
00:00:08]} d6 {[%clk 01:32:45]} {[%emt 00:00:16]} 7. Be2 {[%clk 01:33:26]}
{[%emt 00:00:06]} b6 {[%clk 01:33:01]} {[%emt 00:00:14]} 8. Qc2 {[%clk
01:29:47]} {[%emt 00:04:09]} Bb7 {[%clk 01:29:54]} {[%emt 00:03:37]} 9. O-O
{[%clk 01:24:32]} {[%emt 00:05:44]} Nbd7 {[%clk 01:24:49]} {[%emt 00:05:35]} 10.
b4 {[%clk 01:23:05]} {[%emt 00:01:58]} e5 {[%clk 01:19:52]} {[%emt 00:05:27]}
11. Bb2 {[%clk 01:20:34]} {[%emt 00:03:01]} Re8 {[%clk 01:14:34]} {[%emt
00:05:48]} 12. d5 {[%clk 01:16:47]} {[%emt 00:04:17]} c6 {[%clk 01:11:20]}
{[%emt 00:03:44]} 13. Ne1 {[%clk 01:04:14]} {[%emt 00:13:03]} Rc8 {[%clk
01:06:52]} {[%emt 00:04:58]} 14. Qd3 {[%clk 01:00:36]} {[%emt 00:04:07]} Nf8
{[%clk 00:53:45]} {[%emt 00:13:38]} 15. Qb3 {[%clk 00:46:22]} {[%emt 00:14:44]}
Ng6 {[%clk 00:46:38]} {[%emt 00:07:37]} 16. g3 {[%clk 00:44:19]} {[%emt
00:02:33]} Qd7 {[%clk 00:45:58]} {[%emt 00:01:10]} 17. b5 {[%clk 00:43:15]}
{[%emt 00:01:34]} cxb5 {[%clk 00:43:34]} {[%emt 00:02:54]} 18. cxb5 {[%clk
00:43:42]} {[%emt 00:00:03]} Rc5 {[%clk 00:40:45]} {[%emt 00:03:19]} 19. Ng2
{[%clk 00:42:21]} {[%emt 00:01:51]} Rec8 {[%clk 00:37:24]} {[%emt 00:03:51]} 20.
Ne3 {[%clk 00:42:05]} {[%emt 00:00:45]} h5 {[%clk 00:31:28]} {[%emt 00:06:28]}
21. h4 {[%clk 00:40:40]} {[%emt 00:01:55]} Ng4 {[%clk 00:23:34]} {[%emt
00:08:24]} 22. Rfc1 {[%clk 00:30:21]} {[%emt 00:10:49]} Nf8 {[%clk 00:15:44]}
{[%emt 00:08:21]} 23. a4 {[%clk 00:26:34]} {[%emt 00:04:17]} Rxc1+ {[%clk
00:09:52]} {[%emt 00:06:22]} 24. Rxc1 {[%clk 00:26:57]} {[%emt 00:00:07]} Rxc1+
{[%clk 00:10:10]} {[%emt 00:00:13]} 25. Bxc1 {[%clk 00:27:25]} {[%emt
00:00:02]} Qc7 {[%clk 00:09:35]} {[%emt 00:01:05]} 26. Qc4 {[%clk 00:21:17]}
{[%emt 00:06:39]} Qxc4 {[%clk 00:09:56]} {[%emt 00:00:09]} 27. Ndxc4 {[%clk
00:21:38]} {[%emt 00:00:08]} Nd7 {[%clk 00:08:31]} {[%emt 00:01:55]} 28. Nf5
{[%clk 00:20:55]} {[%emt 00:01:12]} 1-0